bitfinex-derivatives/quotes_BTCF0:USTF0_20250213
["timestamp","ask_amount","ask_price","bid_price","bid_amount"]
[1739459276313,0.001,95692.0,95691.0,0.2089957]
[1739459276813,0.03237622,95693.0,95692.0,0.2089936]
[1739459278109,0.03237622,95693.0,95692.0,0.5089936]
[1739459278315,0.03237622,95693.0,95692.0,0.2089936]
[1739459278914,0.00015675,95701.0,95700.0,0.2089761]
[1739459279112,0.00015675,95701.0,95700.0,0.58353352]
[1739459279314,0.00015675,95701.0,95700.0,0.5697761]
[1739459280429,0.06447195,95715.0,95714.0,0.2089455]
[1739459280617,0.3608,95734.0,95728.0,0.208915]
[1739459280809,0.3608,95735.0,95728.0,0.208915]
[1739459281113,0.23082115,95729.0,95728.0,0.208915]
[1739459281422,0.2089202,95726.0,95720.0,0.2089306]
[1739459281610,0.21703619,95729.0,95719.0,0.00015675]
[1739459281809,0.21703619,95729.0,95727.0,0.2089167]
[1739459282208,0.21703619,95729.0,95719.0,0.20908935]
[1739459282618,0.2089183,95727.0,95719.0,0.00015675]
[1739459283015,0.21703619,95729.0,95726.0,0.2089185]
[1739459283212,0.21703619,95729.0,95719.0,0.20909135]
[1739459283516,0.002,95729.0,95719.0,0.20909135]
[1739459283711,0.002,95729.0,95719.0,0.00015675]
[1739459283712,0.004,95729.0,95719.0,0.00015675]
[1739459283919,0.2129131,95729.0,95719.0,0.00015675]
[1739459284117,0.004,95729.0,95728.0,0.208915]
[1739459284312,0.003,95729.0,95728.0,0.208915]
[1739459284820,0.005,95729.0,95728.0,0.208915]
[1739459285316,0.208932,95721.0,95719.0,0.00015675]
[1739459285512,0.3608,95720.0,95719.0,0.00015675]
[1739459286921,0.002,95721.0,95720.0,0.2089324]
[1739459287313,0.05281816,95729.0,95719.0,0.00015675]
[1739459287314,0.05081816,95729.0,95728.0,0.208915]
[1739459288914,0.05281816,95729.0,95728.0,0.208915]
[1739459289510,0.05281816,95729.0,95728.0,0.569715]
[1739459289716,0.0140402,95746.0,95737.0,0.2088953]
[1739459290220,0.0140402,95746.0,95730.0,0.2089106]
[1739459290221,0.208904,95734.0,95730.0,0.2089106]
[1739459290423,0.208907,95732.0,95731.0,0.2089071]
[1739459290626,0.5696929,95739.0,95729.0,0.2071]
[1739459290820,0.57077291,95739.0,95729.0,0.2071]
[1739459291128,0.05081592,95731.0,95729.0,0.2071]
[1739459291312,0.05081592,95731.0,95730.0,0.2089106]
[1739459291815,0.007,95732.0,95730.0,0.2089106]
[1739459292122,0.01315675,95738.0,95737.0,0.2088953]
[1739459293816,0.00015675,95738.0,95737.0,0.2088953]
[1739459294027,0.00715675,95738.0,95737.0,0.22238056]
[1739459294621,0.01415675,95738.0,95737.0,0.22338056]
[1739459294928,0.01415675,95738.0,95737.0,0.2098953]
[1739459295620,0.01415675,95738.0,95737.0,0.001]
[1739459296923,0.2089045,95733.0,95731.0,0.2089079]
[1739459297118,0.22745675,95738.0,95736.0,0.2088965]
[1739459297319,0.3608,95740.0,95739.0,0.208891]
[1739459297523,0.3608,95740.0,95725.0,0.01391123]
[1739459297524,0.18739227,95740.0,95725.0,0.01391123]
[1739459297720,0.208898,95736.0,95735.0,0.2088973]
[1739459298025,0.18739227,95740.0,95739.0,0.208891]
[1739459300230,0.19439227,95740.0,95725.0,0.01475565]
[1739459300428,0.2089014,95735.0,95733.0,0.2089027]
[1739459300613,0.34944773,95740.0,95725.0,0.01475565]
[1739459300819,0.34544773,95740.0,95725.0,0.01475565]
[1739459301021,0.20039227,95740.0,95739.0,0.001]
[1739459301318,0.20039227,95740.0,95739.0,0.002]
[1739459301319,0.40828107,95740.0,95739.0,0.002]
[1739459301525,0.40228107,95740.0,95739.0,0.001]
[1739459302125,0.40228107,95740.0,95709.0,0.2089547]
[1739459302126,0.2089324,95720.0,95709.0,0.2089547]
[1739459302426,0.5697324,95720.0,95705.0,0.3608]
[1739459302617,0.5697324,95720.0,95708.0,0.2089575]
[1739459302813,0.5697324,95720.0,95706.0,0.0136633]
[1739459304319,0.58357195,95720.0,95719.0,0.00315675]
[1739459304923,0.37463955,95720.0,95698.0,0.2089797]
[1739459305123,0.2089521,95711.0,95698.0,0.01359032]
[1739459305928,0.3608,95712.0,95698.0,0.01359032]
[1739459306127,0.3608,95712.0,95701.0,0.00015675]
[1739459306334,0.3608,95712.0,95710.0,0.21051989]
[1739459306631,0.5697507,95712.0,95710.0,0.00156689]
[1739459307728,0.5697507,95712.0,95710.0,0.21251979]
[1739459308122,0.5707507,95712.0,95710.0,0.21251979]
[1739459308726,0.3618,95712.0,95710.0,0.21251979]
[1739459309024,0.3608,95712.0,95710.0,0.22766584]
[1739459309230,0.44871389,95720.0,95719.0,0.2089346]
[1739459309536,0.08791389,95720.0,95719.0,0.5697346]
[1739459310228,0.00015675,95729.0,95728.0,0.208915]
[1739459311828,0.00115675,95729.0,95728.0,0.208915]
[1739459312024,0.00615675,95729.0,95728.0,0.208915]
[1739459313936,0.05697408,95729.0,95728.0,0.208915]
[1739459316641,0.05697408,95729.0,95728.0,0.410915]
[1739459318832,0.05697408,95729.0,95728.0,0.208915]
[1739459319239,0.208924,95724.0,95722.0,0.2089269]
[1739459319443,0.2089499,95712.0,95710.0,0.25156689]
[1739459319634,0.5697499,95712.0,95710.0,0.25156689]
[1739459320232,0.3608,95711.0,95710.0,0.25156689]
[1739459320637,0.3608,95711.0,95710.0,0.25]
[1739459320949,0.44796,95711.0,95692.0,0.00056]
[1739459321135,0.2090141,95683.0,95680.0,0.00156719]
[1739459321333,0.3608,95682.0,95680.0,0.00156719]
[1739459321739,0.3608,95690.0,95680.0,0.00156719]
[1739459322035,0.3608,95690.0,95689.0,0.2090001]
[1739459322543,0.2090154,95682.0,95681.0,0.24953842]
[1739459322840,0.3608,95682.0,95680.0,0.00156719]
[1739459323035,0.001,95683.0,95681.0,0.2090176]
[1739459323635,0.001,95683.0,95682.0,0.222]
[1739459323940,0.001,95683.0,95682.0,0.4238]
[1739459324639,0.36005006,95692.0,95689.0,0.003]
[1739459324841,0.2089946,95692.0,95689.0,0.003]
[1739459325338,0.2089946,95692.0,95683.0,0.2090132]
[1739459325535,0.2089946,95692.0,95682.0,0.4288]
[1739459325741,0.00015675,95695.0,95691.0,0.3608]
[1739459325947,0.15493711,95695.0,95693.0,0.2089912]
[1739459329039,0.00015675,95695.0,95691.0,0.002]
[1739459329233,0.00015675,95695.0,95691.0,0.2089951]
[1739459329434,0.00115675,95695.0,95694.0,0.2089892]
[1739459329938,0.00215675,95695.0,95694.0,0.2089892]
[1739459331237,0.00215675,95695.0,95694.0,0.2139892]
[1739459331748,0.00215675,95695.0,95694.0,0.005]
[1739459332251,0.00115675,95695.0,95694.0,0.007]
[1739459332437,0.00115675,95695.0,95694.0,0.01]
[1739459332638,0.2090029,95688.0,95660.0,0.2232]
[1739459332843,0.5698029,95688.0,95685.0,0.2090076]
[1739459333148,0.00015675,95695.0,95680.0,0.37382416]
[1739459333448,0.00015675,95695.0,95694.0,0.003]
[1739459334042,0.20914375,95695.0,95694.0,0.003]
[1739459334754,0.21214375,95695.0,95694.0,0.003]
[1739459335142,0.21214375,95695.0,95693.0,0.2089905]
[1739459335544,0.00115675,95695.0,95693.0,0.2089905]
[1739459335746,0.36492411,95695.0,95694.0,0.002]
[1739459336241,0.15593711,95695.0,95693.0,0.001]
[1739459336447,0.2089892,95694.0,95693.0,0.001]
[1739459337354,0.15793711,95695.0,95694.0,0.2089892]
[1739459338046,0.15493711,95695.0,95694.0,0.2089892]
[1739459338744,0.15493711,95695.0,95694.0,0.2129892]
[1739459338944,0.15493711,95695.0,95694.0,0.2159892]
[1739459339147,0.15493711,95695.0,95694.0,0.2119892]
[1739459339340,0.15493711,95695.0,95694.0,0.2179892]
[1739459339341,0.15593711,95695.0,95694.0,0.2179892]
[1739459339852,0.15493711,95695.0,95694.0,0.2119892]
[1739459340059,0.15593711,95695.0,95694.0,0.2179892]
[1739459340454,0.15493711,95695.0,95694.0,0.2119892]
[1739459340658,0.15593711,95695.0,95694.0,0.2179892]
[1739459341367,0.36492411,95695.0,95694.0,0.009]
[1739459342065,0.2090263,95677.0,95673.0,0.0015676]
[1739459342366,0.5698263,95677.0,95673.0,0.0015676]
[1739459342559,0.2090263,95677.0,95673.0,0.0015676]
[1739459342756,0.2090263,95677.0,95668.0,0.01297895]
[1739459342961,0.2090263,95677.0,95668.0,0.22202395]
[1739459343162,0.2090263,95677.0,95673.0,0.2090343]
[1739459343355,0.2090263,95677.0,95668.0,0.01297895]
[1739459343559,0.2090263,95677.0,95670.0,0.2090404]
[1739459343769,0.2090263,95677.0,95668.0,0.01297895]
[1739459343770,0.5698263,95677.0,95668.0,0.01297895]
[1739459344166,0.5698263,95677.0,95676.0,0.00415675]
[1739459344369,0.3608,95685.0,95676.0,0.00415675]
[1739459344669,0.3608,95689.0,95676.0,0.00415675]
[1739459344862,0.3608,95677.0,95676.0,0.00415675]
[1739459345258,0.3608,95689.0,95676.0,0.36495675]
[1739459345472,0.3608,95689.0,95684.0,0.209009]
[1739459345770,0.3608,95689.0,95676.0,0.00115675]
[1739459345970,0.17752225,95689.0,95676.0,0.00115675]
[1739459346362,0.33230261,95689.0,95676.0,0.00115675]
[1739459347365,0.2090188,95681.0,95676.0,0.00115675]
[1739459347571,0.33230261,95689.0,95676.0,0.00115675]
[1739459347572,0.2090263,95677.0,95676.0,0.00115675]
[1739459347770,0.5698263,95677.0,95676.0,0.00115675]
[1739459348067,0.3608,95677.0,95656.0,0.01303053]
[1739459348373,0.2090472,95668.0,95660.0,0.15105546]
[1739459348574,0.3608,95679.0,95663.0,0.3608]
[1739459348776,0.2090381,95672.0,95665.0,0.2090513]
[1739459349072,0.2090403,95671.0,95663.0,0.3608]
[1739459349269,0.2090268,95677.0,95669.0,0.2090437]
[1739459349478,0.2090268,95677.0,95676.0,0.005]
[1739459349675,0.00015675,95678.0,95676.0,0.3658]
[1739459349863,0.00015675,95678.0,95677.0,0.1831]
[1739459352468,0.00015675,95678.0,95677.0,0.1861]
[1739459353777,0.00124001,95700.0,95677.0,0.1861]
[1739459353979,0.5893,95717.0,95695.0,0.569787]
[1739459354164,0.2089432,95716.0,95695.0,0.569787]
[1739459354365,0.2089432,95716.0,95695.0,0.767687]
[1739459354679,0.06482182,95724.0,95695.0,0.767687]
[1739459354870,0.3608,95726.0,95704.0,0.2089673]
[1739459355071,0.24815437,95705.0,95704.0,0.5697673]
[1739459355471,0.08497257,95705.0,95704.0,0.5697673]
[1739459356073,0.00015675,95705.0,95704.0,0.5697673]
[1739459356674,0.00015675,95705.0,95704.0,0.58271639]
[1739459356875,0.00715675,95705.0,95704.0,0.58371639]
[1739459357475,0.01415675,95705.0,95704.0,0.58371639]
[1739459358785,0.01415675,95705.0,95704.0,0.5707673]
[1739459360678,0.01415675,95705.0,95704.0,0.58420177]
[1739459360885,0.00156752,95725.0,95724.0,0.2089237]
[1739459361079,0.00156752,95725.0,95724.0,0.5697237]
[1739459362287,0.00856752,95725.0,95724.0,0.5697237]
[1739459363086,0.01456752,95725.0,95724.0,0.5707237]
[1739459363882,0.01456752,95725.0,95724.0,0.2099237]
[1739459364486,0.01456752,95725.0,95724.0,0.5707237]
[1739459367282,0.013,95725.0,95724.0,0.5707237]
[1739459367480,0.00015675,95734.0,95733.0,0.2089041]
[1739459367695,0.00015675,95734.0,95733.0,0.5697041]
[1739459367988,0.00015675,95734.0,95733.0,0.58256418]
[1739459368188,0.2088795,95745.0,95741.0,0.2088862]
[1739459368696,0.3608,95752.0,95741.0,0.2088862]
[1739459369280,0.36095675,95752.0,95741.0,0.2088862]
[1739459369479,0.03582,95743.0,95742.0,0.2088844]
[1739459370602,0.04082,95743.0,95742.0,0.2098844]
[1739459371892,0.03482,95743.0,95742.0,0.2108844]
[1739459372500,0.03482,95743.0,95742.0,0.2103844]
[1739459374389,0.00015675,95752.0,95742.0,0.002]
[1739459374692,0.00015675,95752.0,95751.0,0.5696648]
[1739459378095,0.00015675,95752.0,95751.0,0.5706648]
[1739459379793,0.00015675,95752.0,95751.0,0.002]
[1739459381907,0.01263875,95752.0,95751.0,0.002]
[1739459382496,0.37343875,95752.0,95751.0,0.002]
[1739459382697,0.33693875,95752.0,95751.0,0.002]
[1739459382892,0.00015675,95752.0,95751.0,0.002]
[1739459383310,0.00015675,95752.0,95751.0,0.1738]
[1739459383798,0.00015675,95752.0,95751.0,0.18658502]
[1739459384505,0.00015675,95752.0,95751.0,0.002]
[1739459386199,0.00015675,95752.0,95751.0,0.2108648]
[1739459389005,0.00015675,95752.0,95751.0,0.2098648]
[1739459391504,0.00015675,95752.0,95751.0,0.2108648]
[1739459391800,5e-08,95752.0,95751.0,0.2108648]
[1739459400613,0.20886265,95752.0,95751.0,0.002]
[1739459400811,0.2088822,95743.0,95742.0,0.18749645]
[1739459401716,0.22133817,95743.0,95742.0,0.18749645]
[1739459402110,0.2088822,95743.0,95742.0,0.19249645]
[1739459402306,5e-08,95752.0,95751.0,0.2088648]
[1739459402512,5e-08,95752.0,95751.0,0.5696648]
[1739459404917,5e-08,95752.0,95751.0,0.5706648]
[1739459408015,5e-08,95752.0,95751.0,0.001]
[1739459408316,0.17650005,95752.0,95743.0,0.2088818]
[1739459408521,0.2088781,95745.0,95743.0,0.2088818]
[1739459409123,0.2088781,95745.0,95744.0,0.2088801]
[1739459409618,0.2088781,95745.0,95743.0,0.004]
[1739459409818,0.2088801,95744.0,95743.0,0.004]
[1739459410218,0.2088801,95744.0,95743.0,0.2128822]
[1739459410729,0.2088801,95744.0,95743.0,0.2148822]
[1739459411026,0.36407844,95744.0,95743.0,0.2148822]
[1739459411217,0.36407844,95744.0,95743.0,0.2108822]
[1739459411623,0.15519834,95744.0,95743.0,0.2108822]
[1739459411823,0.15519834,95744.0,95743.0,0.2148822]
[1739459412023,0.15519834,95744.0,95743.0,0.5756822]
[1739459412927,0.36407844,95744.0,95743.0,0.006]
[1739459414419,0.2088801,95744.0,95743.0,0.006]
[1739459414729,0.2088801,95744.0,95743.0,0.2148822]
[1739459415327,0.2088801,95744.0,95743.0,0.006]
[1739459415729,0.15519834,95747.0,95737.0,0.00015666]
[1739459415730,0.2088932,95738.0,95737.0,0.00015666]
[1739459416230,0.1732,95745.0,95737.0,0.00015666]
[1739459416416,0.15519834,95747.0,95737.0,0.00015666]
[1739459416621,0.15519834,95747.0,95746.0,0.2088757]
[1739459417229,0.36407184,95747.0,95746.0,0.2088757]
[1739459418022,0.2088735,95747.0,95746.0,0.2088757]
[1739459418233,0.2088735,95747.0,95746.0,0.2128757]
[1739459418727,5e-08,95752.0,95751.0,0.2088648]
[1739459418914,0.20886265,95752.0,95751.0,0.2088648]
[1739459419118,0.2088735,95747.0,95746.0,0.212875]
[1739459419320,0.2088735,95747.0,95746.0,0.004]
[1739459419528,0.2088735,95747.0,95746.0,0.2128757]
[1739459419922,5e-08,95752.0,95746.0,0.004]
[1739459420227,5e-08,95752.0,95751.0,0.2088649]
[1739459420617,0.20986275,95752.0,95751.0,0.001]
[1739459420823,0.00100005,95752.0,95731.0,0.8747]
[1739459421024,0.00100005,95752.0,95731.0,0.8753]
[1739459421029,0.2088932,95738.0,95731.0,0.8753]
[1739459421626,0.2088932,95738.0,95735.0,0.01278841]
[1739459421826,0.15105546,95747.0,95735.0,0.01278841]
[1739459422131,0.208872,95748.0,95737.0,0.00415666]
[1739459422331,0.2088841,95743.0,95742.0,0.2088844]
[1739459422523,0.18609497,95750.0,95737.0,0.00415666]
[1739459422828,0.2088825,95743.0,95737.0,0.00415666]
[1739459423020,0.18609497,95750.0,95747.0,0.2088712]
[1739459423021,0.2088719,95748.0,95747.0,0.2088712]
[1739459423530,0.18609497,95750.0,95749.0,0.2088692]
[1739459424238,5e-08,95752.0,95747.0,0.3608]
[1739459424239,2e-08,95752.0,95747.0,0.3608]
[1739459424426,0.01263723,95768.0,95751.0,0.3608]
[1739459424427,0.00146002,95759.0,95751.0,0.3608]
[1739459424731,0.00146002,95759.0,95758.0,0.5696496]
[1739459425825,0.00146002,95759.0,95758.0,0.2088496]
[1739459426537,0.00146002,95759.0,95758.0,0.2214667]
[1739459426747,0.2088536,95757.0,95752.0,0.1766]
[1739459427239,0.00246002,95759.0,95751.0,0.3608]
[1739459427629,0.2088811,95744.0,95742.0,0.2088844]
[1739459427843,0.00446002,95759.0,95746.0,0.2088755]
[1739459428044,0.00346002,95759.0,95752.0,0.001]
[1739459428242,0.2088605,95753.0,95752.0,0.001]
[1739459428535,0.00346002,95759.0,95751.0,0.2098645]
[1739459428931,0.00346002,95759.0,95751.0,0.001]
[1739459428932,0.2088605,95753.0,95751.0,0.001]
[1739459430033,0.3608,95755.0,95741.0,0.1741]
[1739459430224,0.2088583,95754.0,95752.0,0.001]
[1739459430630,0.001,95753.0,95741.0,0.3829858]
[1739459430837,0.2088631,95752.0,95751.0,0.001]
[1739459431135,0.26940111,95752.0,95751.0,0.001]
[1739459431438,0.2088932,95738.0,95734.0,0.2089005]
[1739459431833,0.2088932,95738.0,95732.0,0.1818]
[1739459432728,0.2088932,95738.0,95732.0,0.390706]
[1739459432927,0.2088932,95738.0,95733.0,0.2089033]
[1739459433733,0.00015666,95747.0,95737.0,0.01015666]
[1739459434137,0.2088814,95744.0,95737.0,0.01015666]
[1739459434434,0.00015666,95747.0,95746.0,0.2088758]
[1739459435631,0.00015666,95747.0,95746.0,0.22106569]
[1739459435828,0.06473585,95766.0,95757.0,0.2088518]
[1739459436033,0.06473585,95766.0,95758.0,0.713]
[1739459436239,0.2088069,95778.0,95758.0,0.713]
[1739459436434,0.15105546,95770.0,95758.0,0.713]
[1739459436727,0.2088308,95767.0,95758.0,0.713]
[1739459437132,0.00010298,95768.0,95758.0,0.713]
[1739459437530,0.00246002,95759.0,95758.0,0.714]
[1739459437736,0.36326002,95759.0,95758.0,0.001]
[1739459438830,0.00246002,95759.0,95758.0,0.001]
[1739459441244,0.2088823,95743.0,95737.0,0.00172322]
[1739459441444,0.2088823,95743.0,95740.0,0.2088877]
[1739459441644,0.2088823,95743.0,95737.0,0.00172322]
[1739459441950,0.2088932,95738.0,95737.0,0.00172322]
[1739459443141,0.53734001,95742.0,95724.0,0.2089231]
[1739459443348,0.2088932,95738.0,95737.0,0.007]
[1739459443848,0.00124001,95742.0,95740.0,0.2088885]
[1739459444143,0.001,95743.0,95741.0,0.006]
[1739459444349,0.001,95743.0,95742.0,0.2088845]
[1739459446143,0.2088765,95746.0,95743.0,0.2088809]
[1739459446644,0.3608,95750.0,95742.0,0.004]
[1739459446840,0.3608,95750.0,95746.0,0.2088758]
[1739459448339,0.3608,95750.0,95744.0,0.1771]
[1739459448340,0.208878,95745.0,95744.0,0.1771]
[1739459449535,0.208878,95745.0,95744.0,0.002]
[1739459449732,0.06063826,95747.0,95745.0,0.2088779]
[1739459450050,0.26951266,95747.0,95745.0,0.2088779]
[1739459450745,0.2088758,95746.0,95745.0,0.2088779]
[1739459451339,0.2088758,95746.0,95745.0,0.2118779]
[1739459451539,0.2088758,95746.0,95745.0,0.003]
[1739459452456,0.2088758,95746.0,95745.0,0.004]
[1739459452648,0.2088758,95746.0,95745.0,0.2128779]
[1739459453148,0.00010298,95747.0,95746.0,0.2088758]
[1739459454442,0.00010298,95747.0,95746.0,0.2118758]
[1739459455152,0.00010298,95747.0,95746.0,0.2128758]
[1739459455555,0.20897658,95747.0,95746.0,0.2128758]
[1739459456255,0.20897658,95747.0,95746.0,0.004]
[1739459456943,0.20897658,95747.0,95746.0,0.2128758]
[1739459457146,0.20897658,95747.0,95746.0,0.004]
[1739459461650,0.26951639,95747.0,95746.0,0.004]
[1739459461950,0.26951639,95747.0,95746.0,0.2128758]
[1739459462151,0.26951639,95747.0,95746.0,0.004]
[1739459464954,0.26951639,95747.0,95632.0,0.04566528]
[1739459464955,0.42144279,95747.0,95726.0,0.522]
[1739459465156,0.2089565,95709.0,95708.0,0.1764]
[1739459465957,0.22091537,95709.0,95708.0,0.1764]
[1739459466256,0.2089732,95702.0,95700.0,0.36509645]
[1739459466457,0.2089732,95702.0,95700.0,0.18749645]
[1739459466753,0.2089618,95707.0,95701.0,0.2089728]
[1739459467155,0.2089618,95707.0,95701.0,0.2212694]
[1739459467356,0.2089618,95707.0,95702.0,0.2089704]
[1739459467556,0.2089733,95702.0,95700.0,0.18749645]
[1739459468160,0.2089733,95702.0,95700.0,0.19449645]
[1739459468865,0.2089733,95702.0,95700.0,0.18749645]
[1739459469165,0.2099733,95702.0,95701.0,0.006]
[1739459469862,0.2099733,95702.0,95700.0,0.20149645]
[1739459470063,0.39610211,95702.0,95700.0,0.014]
[1739459470567,0.40842908,95702.0,95700.0,0.02586168]
[1739459470758,0.40842908,95702.0,95701.0,0.006]
[1739459471783,0.40842908,95702.0,95701.0,0.013]
[1739459472365,0.40842908,95702.0,95701.0,0.007]
[1739459473373,0.22230027,95702.0,95701.0,0.007]
[1739459473762,0.22230027,95702.0,95701.0,0.013]
[1739459478467,0.0437385,95702.0,95701.0,0.013]
[1739459478671,0.22230027,95702.0,95701.0,0.013]
[1739459481982,0.38770027,95702.0,95701.0,0.013]
[1739459483177,0.22230027,95702.0,95701.0,0.013]
[1739459484079,0.01332697,95702.0,95701.0,0.013]
[1739459484279,0.01332697,95702.0,95701.0,0.2219739]
[1739459484481,0.001,95702.0,95701.0,0.23405941]
[1739459484677,0.18612881,95711.0,95709.0,0.2089557]
[1739459484872,0.18612881,95711.0,95710.0,0.3463]
[1739459485079,0.19825565,95716.0,95710.0,0.7071]
[1739459485284,0.19825565,95716.0,95715.0,0.2089434]
[1739459485285,0.18612881,95716.0,95715.0,0.2089434]
[1739459485479,0.18612881,95716.0,95710.0,0.7071]
[1739459485780,0.19838814,95716.0,95710.0,0.7071]
[1739459485972,0.2089502,95712.0,95710.0,0.3463]
[1739459486684,0.2089502,95712.0,95710.0,0.3503]
[1739459487372,0.3608,95714.0,95710.0,0.3503]
[1739459487686,0.3608,95714.0,95712.0,0.2089478]
[1739459487876,0.00156778,95722.0,95710.0,0.3503]
[1739459487877,0.00156778,95722.0,95713.0,0.176]
[1739459488069,0.00156778,95722.0,95714.0,0.2089456]
[1739459488476,0.00156778,95722.0,95715.0,0.2089421]
[1739459488674,0.00156778,95722.0,95713.0,0.176]
[1739459488877,0.01226788,95718.0,95716.0,0.20894]
[1739459489073,0.01226788,95718.0,95713.0,0.176]
[1739459489378,0.01226788,95718.0,95714.0,0.002]
[1739459489783,0.2089424,95716.0,95714.0,0.003]
[1739459491083,0.01226788,95718.0,95714.0,0.003]
[1739459491478,0.2089243,95724.0,95717.0,0.208939]
[1739459491783,0.15108136,95730.0,95714.0,0.3638]
[1739459492177,0.2089299,95722.0,95716.0,0.2089394]
[1739459492382,0.003,95718.0,95716.0,0.2089394]
[1739459492782,0.2089419,95716.0,95714.0,0.002]
[1739459493182,0.2089419,95716.0,95714.0,0.003]
[1739459495082,0.2089419,95716.0,95714.0,0.001]
[1739459495483,0.2089506,95712.0,95710.0,0.3463]
[1739459497279,0.2109506,95712.0,95710.0,0.3463]
[1739459498380,0.2089521,95711.0,95710.0,0.3463]
[1739459498884,0.22063035,95711.0,95710.0,0.3483]
[1739459499582,0.22063035,95711.0,95710.0,0.002]
[1739459499791,0.28119196,95711.0,95710.0,0.002]
[1739459499988,0.2089761,95700.0,95694.0,0.3318]
[1739459500683,0.2089761,95700.0,95687.0,0.1693]
[1739459500884,0.2090154,95682.0,95676.0,0.2090283]
[1739459501288,0.15108136,95700.0,95676.0,0.3608]
[1739459501585,0.2089783,95699.0,95696.0,0.2089839]
[1739459501799,0.2089805,95698.0,95697.0,0.3419]
[1739459503591,0.2089705,95703.0,95702.0,0.2089718]
[1739459503789,0.2089773,95700.0,95698.0,0.1611]
[1739459503990,0.13735396,95699.0,95698.0,0.3700805]
[1739459504887,0.00015675,95707.0,95706.0,0.208963]
[1739459505492,0.00015675,95707.0,95706.0,0.569763]
[1739459507089,0.00315675,95707.0,95706.0,0.569763]
[1739459509307,0.00315675,95707.0,95706.0,0.3608]
[1739459509991,0.00015675,95707.0,95706.0,0.3618]
[1739459510185,0.01200104,95707.0,95706.0,0.3618]
[1739459510394,0.00015675,95707.0,95706.0,0.3618]
[1739459510595,0.01184387,95707.0,95706.0,0.3618]
[1739459510789,0.00115675,95707.0,95706.0,0.3608]
[1739459511300,0.161,95717.0,95706.0,0.3608]
[1739459511605,0.003,95707.0,95706.0,0.3638]
[1739459512496,0.3638,95707.0,95706.0,0.003]
[1739459513992,0.003,95707.0,95706.0,0.003]
[1739459514388,0.003,95707.0,95703.0,0.2089689]
[1739459514594,0.004,95707.0,95703.0,0.2089689]
[1739459514799,0.2089639,95706.0,95703.0,0.2089689]
[1739459514999,0.004,95707.0,95704.0,0.2089672]
[1739459515200,0.004,95707.0,95705.0,0.2089648]
[1739459515699,0.003,95707.0,95705.0,0.2089648]
[1739459516604,0.2089721,95702.0,95699.0,0.2089773]
[1739459516813,0.003,95707.0,95701.0,0.2089731]
[1739459517006,0.003,95707.0,95697.0,0.1688]
[1739459517202,0.06056488,95706.0,95697.0,0.1688]
[1739459517407,0.2089764,95700.0,95697.0,0.3777824]
[1739459518309,0.22072325,95700.0,95697.0,0.3777824]
[1739459518700,0.26952918,95706.0,95697.0,0.1708]
[1739459518904,0.06056488,95706.0,95697.0,0.1708]
[1739459519110,0.2089676,95704.0,95701.0,0.2089739]
[1739459519997,0.2089676,95704.0,95702.0,0.2089717]
[1739459520206,0.2089676,95704.0,95697.0,0.1708]
[1739459520207,0.00015675,95716.0,95705.0,0.2089652]
[1739459520508,0.00015675,95716.0,95715.0,0.2089434]
[1739459521108,0.00015675,95716.0,95713.0,0.3608]
[1739459522510,0.00015675,95716.0,95714.0,0.2089456]
[1739459523011,1.20308768,95720.0,95719.0,0.2089347]
[1739459523303,1.20156768,95720.0,95719.0,0.2089347]
[1739459524812,1.20256768,95720.0,95719.0,0.2089347]
[1739459525609,1.20256768,95720.0,95719.0,0.2099347]
[1739459526002,1.20256768,95720.0,95713.0,0.3608]
[1739459526206,1.20256768,95720.0,95719.0,0.001]
[1739459527711,1.20156768,95720.0,95719.0,0.001]
[1739459528014,1.20256768,95720.0,95719.0,0.001]
[1739459528599,0.2089521,95711.0,95710.0,0.00015675]
[1739459529415,0.0522419,95704.0,95682.0,0.3608]
[1739459529710,0.15108136,95700.0,95686.0,0.2090062]
[1739459529901,0.15108136,95700.0,95682.0,0.3608]
[1739459530102,0.209012,95684.0,95682.0,0.3608]
[1739459531199,0.209012,95684.0,95682.0,0.3668]
[1739459532911,0.22099418,95684.0,95682.0,0.3668]
[1739459533301,0.22199418,95684.0,95682.0,0.3738]
[1739459533809,0.22199418,95684.0,95682.0,0.013]
[1739459534110,0.01298218,95684.0,95682.0,0.013]
[1739459534300,0.01298218,95684.0,95682.0,0.2220145]
[1739459534807,0.001,95684.0,95682.0,0.2220145]
[1739459535312,0.001,95684.0,95682.0,0.2337567]
[1739459536212,0.00015675,95693.0,95692.0,0.2089936]
[1739459536503,0.00015675,95693.0,95692.0,0.5697936]
[1739459536711,0.01196208,95708.0,95707.0,0.2089608]
[1739459536905,0.01196208,95708.0,95707.0,0.5697608]
[1739459537509,0.2089534,95711.0,95707.0,0.5697608]
[1739459537920,0.1596,95715.0,95707.0,0.3608]
[1739459538119,0.01186869,95715.0,95707.0,0.3608]
[1739459538419,9e-08,95719.0,95718.0,0.2089368]
[1739459538610,1e-08,95740.0,95739.0,0.208891]
[1739459538912,0.15108136,95780.0,95739.0,0.3608]
[1739459539116,0.51188136,95770.0,95755.0,0.3608]
[1739459539315,0.01188169,95761.0,95755.0,0.3608]
[1739459539520,0.2088517,95757.0,95755.0,0.3608]
[1739459541308,0.2088733,95748.0,95746.0,0.00015667]
[1739459541511,0.002,95756.0,95746.0,0.00015667]
[1739459542824,0.213852,95757.0,95755.0,0.3618]
[1739459543121,0.005,95757.0,95755.0,0.3618]
[1739459543608,0.00146002,95759.0,95755.0,0.3608]
[1739459544813,0.2088539,95756.0,95755.0,0.3608]
[1739459545319,0.001,95757.0,95746.0,0.00015667]
[1739459545507,0.2088733,95748.0,95746.0,0.00015667]
[1739459546824,0.22096368,95748.0,95746.0,0.00015667]
[1739459547119,0.2088733,95748.0,95746.0,0.00015667]
[1739459547313,0.2088592,95754.0,95746.0,0.21003147]
[1739459547919,0.2088592,95754.0,95746.0,0.20903147]
[1739459548114,0.01191615,95755.0,95746.0,0.00315667]
[1739459548422,0.2088727,95748.0,95746.0,0.00315667]
[1739459548625,0.2088727,95748.0,95746.0,0.00215667]
[1739459549115,0.1524,95747.0,95746.0,0.00115667]
[1739459549825,0.3128,95747.0,95746.0,0.00215667]
[1739459550221,0.3128,95747.0,95746.0,0.00115667]
[1739459551117,0.3128,95747.0,95746.0,0.00215667]
[1739459551323,0.3128,95747.0,95746.0,0.00115667]
[1739459551625,0.3148,95747.0,95746.0,0.00115667]
[1739459552319,0.3128,95747.0,95746.0,0.00115667]